Cogmind - Beta 16.1 @@@ ROGUE MODE // 2026.02.20 @ 19:35:00 Player: MN-51T Result: Destroyed by G-34 Mercenary with Small Laser Performance ------------- Evolutions (0) 0 Regions Visited (4) 800 Robots Destroyed (12) 60 Value Destroyed (220) 220 Prototype IDs (23) 460 Alien Tech Used (0) 0 Bonus (300) 300 TOTAL SCORE: 1840 Bonus ------- Aligned with FarCom 300 Cogmind --------- Core Integrity 0/250 Matter 300/300 Energy 100/100 System Corruption 0% Temperature Cool (6) Movement Treading (160) Location -9/Mines Parts ------- > --- POWER (1) -------- (None) > --- PROPULSION (2) --- Light Treads > --- UTILITY (2) ------ (None) > --- WEAPON (2) ------- Medium Laser > --- INVENTORY (5) ---- Compact Wheel Compact Wheel Large Battery (200) High-capacity Matter Pod (200) Trap Reconfigurator Peak State ------------ > --- POWER ------------ Light Ion Engine > --- PROPULSION ------- Aluminum Leg Aluminum Leg > --- UTILITY ---------- Improved Heat Sink Small Storage Unit > --- WEAPON ----------- Medium Laser Light Assault Rifle > --- INVENTORY -------- Light Ion Engine Light Treads Light Treads Compact Wheel Compact Wheel Medium Laser [Rating: 9] Favorites ----------- Power Light Ion Engine Engine Light Ion Engine Propulsion Compact Wheel Treads Light Treads Leg Aluminum Leg Wheel Compact Wheel Utility Humpback Device Improved Heat Sink Storage Humpback Weapon Medium Laser Energy Gun Medium Laser Ballistic Gun Light Assault Rifle Build | -11 -10 -10 -10 -9 ------- Run | Yrd Mat Min Exi Min Slots Evolved . | . . . . . Power . | . . . . . Propulsion . | . . . . . Utility . | . . . . . Weapon . | . . . . . Parts Attached 22 | 7 12 . 1 2 Power 3 | 2 1 . . . Engine 3 | 2 1 . . . Core . | . . . . . Reactor . | . . . . . Propulsion 8 | 2 4 . . 2 Treads 2 | . . . . 2 Leg 4 | 2 2 . . . Wheel 2 | . 2 . . . Hover . | . . . . . Flight . | . . . . . Utility 6 | 1 4 . 1 . Device 2 | . 2 . . . Storage 4 | 1 2 . 1 . Processor . | . . . . . Hackware . | . . . . . Protection . | . . . . . Artifact . | . . . . . Weapon 5 | 2 3 . . . Energy Gun 3 | 1 2 . . . Energy Cannon . | . . . . . Ballistic Gun 2 | 1 1 . . . Ballistic Cannon . | . . . . . Launcher . | . . . . . Special Weapon . | . . . . . Impact Weapon . | . . . . . Slashing Weapon . | . . . . . Piercing Weapon . | . . . . . Special Melee Weapon . | . . . . . Unidentified Prototypes . | . . . . . Parts Lost 4 | . 3 . . 1 Power 2 | . 1 . . 1 Propulsion 1 | . 1 . . . Utility . | . . . . . Weapon 1 | . 1 . . . Highest Loss Streak 2 | . 2 . . 1 To Critical Strikes . | . . . . . Average Backups 4 | 2 4 3 5 5 Power . | . . . . . Propulsion 2 | 1 3 2 2 2 Utility 2 | . . 1 3 3 Weapon . | . . . . . Tool/Special . | . . . . . Unused Backups 5 | . 1 . 1 3 Power . | . . . . . Propulsion 1 | . 1 . . . Utility 4 | . . . 1 3 Weapon . | . . . . . Tool/Special . | . . . . . Average Slot Usage (%) 87 | . 92 100 86 83 Engine 13 | . 12 14 14 14 Leg 4 | . 18 . . . Wheel 22 | . 9 28 28 25 Device 3 | . 9 14 . . Storage 13 | . 14 14 14 13 Energy Gun 14 | . 16 14 14 14 Ballistic Gun 13 | . 10 14 14 13 Peak Build Rating 9 | 6 9 7 8 8 Average Rating 7 | 4 7 7 7 7 On Entrance 5 | . 6 7 7 8 Avg Prop Armor Cover (%) . | . . . . . Naked Turns . | . . . . . Heaviest Build 206 | 13 27 27 206 206 Greatest Support 32 | 20 32 32 32 32 Greatest Overweight (x) 6 | . . . 6 6 Average Overweight (x) 3 | . . . 5 6 Largest Inventory Capacity 35 | 8 15 15 35 35 Average Capacity 26 | 6 10 15 33 33 Most Carried 8 | 6 8 3 6 6 Average Carried 4 | 2 4 3 5 5 Final Capacity 35 | 8 15 15 35 5 Final Carried 6 | 6 3 3 6 5 Class Distribution -------------------- 65% | Hauler-Mutant 23% | Mutant 10% | Scavenger-Mutant Dominant Class ---------------- Mutant | -10/Materials Mutant | -10/Mines Hauler-Mutant | -10/Exiles Hauler-Mutant | -9/Mines Resources | -11 -10 -10 -10 -9 ----------- Run | Yrd Mat Min Exi Min Matter Collected 554 | 175 279 . 100 . Remotely . | . . . . . Salvage Created 378 | . 378 . . . Parts 24 | . 24 . . . Haulers Intercepted . | . . . . . Recyclers Shooed . | . . . . . Parts Field Recycled . | . . . . . Retrieved Matter . | . . . . . Parts Self-Destructed . | . . . . . Prevented . | . . . . . Parts Restored . | . . . . . Kills | -11 -10 -10 -10 -9 ------- Run | Yrd Mat Min Exi Min Combat Hostiles Destroyed 10 | . 10 . . . Guns 10 | . 10 . . . Classes Destroyed 4 | . 4 . . . Builder 1 | . 1 . . . Recycler 1 | . 1 . . . Swarmer 6 | . 6 . . . Grunt 4 | . 4 . . . Best Kill Streak 5 | . 5 . . . Combat Bots Only 4 | . 4 . . . Max Kills in Single Turn 1 | . 1 . . . Gunslinging . | . . . . . Exploded . | . . . . . Melee . | . . . . . Uniques/NPCs Destroyed . | . . . . . Combat | -11 -10 -10 -10 -9 -------- Run | Yrd Mat Min Exi Min Hostile Shots Fired 104 | . 86 1 . 17 Missed 19 | . 15 . . 4 Hits 85 | . 71 1 . 13 Melee 8 | . . . . 8 Projectile 77 | . 71 1 . 5 Critical Strikes 4 | . 1 . . 3 Damage Taken 1044 | . 723 12 . 309 Core 258 | . 166 . . 92 Absorbed by Shields . | . . . . . Core Remaining (%) 100 | 100 . . . . Volleys Fired 49 | . 45 . . 4 Largest 2 | . 2 . . 2 Hottest 90 | . 90 . . 70 Shots Fired 84 | . 78 . . 6 Gun 84 | . 78 . . 6 Cannon . | . . . . . Launcher . | . . . . . Special . | . . . . . Kinetic 32 | . 30 . . 2 Thermal 40 | . 36 . . 4 Explosive . | . . . . . Electromagnetic 12 | . 12 . . . Robot Hit Streak 7 | . 7 . . 3 Robot Miss Streak 4 | . 4 . . 1 Penetration Max . | . . . . . Secondary Targets 2 | . 2 . . . Max Gunslinging Chain 1 | . 1 . . . Shots Hit Robots 43 | . 38 . . 5 Core Hits 20 | . 18 . . 2 Critical Kills . | . . . . . Critical Parts Destroyed . | . . . . . Critical Strikes . | . . . . . Melee Attacks . | . . . . . Impact . | . . . . . Slashing . | . . . . . Piercing . | . . . . . Sneak Attacks . | . . . . . Combat Hostiles . | . . . . . Follow-up Attacks . | . . . . . Damage Inflicted 554 | . 488 . . 66 Guns 501 | . 444 . . 57 Cannons . | . . . . . Explosions . | . . . . . Melee . | . . . . . Ramming 53 | . 44 . . 9 Kinetic 147 | . 128 . . 19 Thermal 264 | . 226 . . 38 Explosive . | . . . . . Electromagnetic 90 | . 90 . . . Impact . | . . . . . Slashing . | . . . . . Piercing . | . . . . . Highest Corruption . | . . . . . Average Corruption . | . . . . . Corruption Purged . | . . . . . Corruption Blocked . | . . . . . Overload Shots . | . . . . . Overflow Damage . | . . . . . Projectiles . | . . . . . Explosions . | . . . . . Melee . | . . . . . Knockbacks 1 | . 1 . . . Impact 1 | . 1 . . . Kinetic . | . . . . . Secondary . | . . . . . Self-Inflicted Damage 21 | . 21 . . . Shots . | . . . . . Rammed 11 | . 2 . . 9 Targets Rammed 11 | . 2 . . 9 Kicked . | . . . . . Crushed . | . . . . . Highest Temperature 344 | . 344 . . 30 Average Temperature 163 | . 175 . . 19 Received Heat Transfer 237 | . 201 6 . 30 Effects 2 | . 2 . . . Shutdowns 1 | . 1 . . . Matter Decay 1 | . 1 . . . Siege Activations . | . . . . . Martial Activations . | . . . . . Shielding Activations . | . . . . . Robots Disrupted . | . . . . . Combat Hostiles . | . . . . . Robots Corrupted . | . . . . . Combat Hostiles . | . . . . . Parts Fried . | . . . . . Impact Corruptions . | . . . . . Robots Melted . | . . . . . Combat Hostiles . | . . . . . Parts Melted . | . . . . . Heat Transferred 777 | . 666 . . 111 Parts Sabotaged . | . . . . . Parts Stolen . | . . . . . Parts Stripped . | . . . . . Power Chain Reactions . | . . . . . Alert | -11 -10 -10 -10 -9 ------- Run | Yrd Mat Min Exi Min Maximum Alert Level . | . . . . . Low Security (%) 100 | 100 100 100 . 100 Level 1 . | . . . . . Level 2 . | . . . . . Level 3 . | . . . . . Level 4 . | . . . . . Level 5 . | . . . . . High Security . | . . . . . Max Security . | . . . . . Peak Influence 146 | . 146 3 . . Initial 3 | . . 3 . . Average 41 | . 74 1 . . Influence Increases 296 | . 296 . . . Destroy 0b10 Robot/C 200 | . 200 . . . Destroy 0b10 Robot/NC 10 | . 10 . . . Destroy Leader 40 | . 40 . . . Successful Hack 30 | . 30 . . . Destroy Structure 1 | . 1 . . . Lose Combat Pursuer 15 | . 15 . . . Influence Decreases 296 | . 286 10 . . Entered New Map 7 | . . 7 . . Time Decay 259 | . 256 3 . . Lost Part 30 | . 30 . . . Squads Dispatched 1 | . 1 . . . Investigation . | . . . . . Extermination . | . . . . . Reinforcement 1 | . 1 . . . Assault . | . . . . . Garrison . | . . . . . Intercept . | . . . . . Searches Triggered . | . . . . . Construction Impeded . | . . . . . Haulers Reinforced . | . . . . . Active Scanning Responses . | . . . . . Cargo Convoy Interrupts . | . . . . . Stealth | -11 -10 -10 -10 -9 --------- Run | Yrd Mat Min Exi Min Distress Signals 1 | . 1 . . . Communications Jammed . | . . . . . Distress Signals . | . . . . . Times Spotted 24 | . 18 2 . 4 Peak Tracking Total 5 | . 5 3 . 4 Tactical Retreats 1 | . 1 . . . Traps | -11 -10 -10 -10 -9 ------- Run | Yrd Mat Min Exi Min Traps Triggered 1 | . 1 . . . Indirectly . | . . . . . Trap Hack Attempts . | . . . . . Triggered . | . . . . . Disarmed . | . . . . . Reprogrammed . | . . . . . Reused . | . . . . . Traps Extracted . | . . . . . Installed . | . . . . . Triggered . | . . . . . Machines | -11 -10 -10 -10 -9 ---------- Run | Yrd Mat Min Exi Min Machines Disabled . | . . . . . Max in Single Turn . | . . . . . Machines Repaired . | . . . . . Machines Dismantled . | . . . . . Machines Sabotaged . | . . . . . Overloaded Fab Kills . | . . . . . Hacking | -11 -10 -10 -10 -9 --------- Run | Yrd Mat Min Exi Min Machines Accessed 13 | . 8 . 5 . Terminals 6 | . 6 . . . Fabricators . | . . . . . Repair Stations . | . . . . . Recycling Units 2 | . 2 . . . Scanalyzers . | . . . . . Garrison Access . | . . . . . Total Hacks 70 | . 20 . 50 . Successful 63 | . 13 . 50 . Failed 7 | . 7 . . . Catastrophic . | . . . . . Database Lockouts . | . . . . . Manual 13 | . 12 . 1 . Terminals 16 | . 16 . . . Fabricators . | . . . . . Repair Stations . | . . . . . Recycling Units 4 | . 4 . . . Scanalyzers . | . . . . . Garrison Access . | . . . . . Terminal Hacks 58 | . 8 . 50 . Record 49 | . . . 49 . Robot Analysis 1 | . 1 . . . Terminal Index 1 | . 1 . . . Scanalyzer Index 1 | . 1 . . . Alert Level 1 | . 1 . . . Locate Traps 2 | . 2 . . . Zone Layout 2 | . 2 . . . Proto ID Catalog 1 | . . . 1 . Fabricator Hacks . | . . . . . Repair Station Hacks . | . . . . . Recycling Unit Hacks 3 | . 3 . . . Report Inventory 2 | . 2 . . . Retrieve Components 1 | . 1 . . . Scanalyzer . | . . . . . Garrison Access Hacks . | . . . . . Unauthorized Hacks 2 | . 2 . . . Terminals 2 | . 2 . . . Botnet 2 | . 2 . . . Fabricators . | . . . . . Repair Stations . | . . . . . Recycling Units . | . . . . . Scanalyzers . | . . . . . Garrison Access . | . . . . . Data Cores Recovered . | . . . . . Used . | . . . . . Hacking Detections 7 | . 7 . . . Full Trace Events . | . . . . . Feedback Events . | . . . . . Feedback Blocked . | . . . . . Robot Schematics Acquired . | . . . . . Robots Built . | . . . . . Authchips . | . . . . . Time . | . . . . . Total Robot Build Rating . | . . . . . Part Schematics Acquired . | . . . . . Parts Built . | . . . . . Authchips . | . . . . . Time . | . . . . . Total Part Build Rating . | . . . . . Part Studies Acquired . | . . . . . Parts Repaired . | . . . . . Time . | . . . . . Parts Recycled . | . . . . . Recycled Matter . | . . . . . Retrieved Matter . | . . . . . Retrieved Components 2 | . 2 . . . Parts Scanalyzed . | . . . . . Part Schematics Acquired . | . . . . . Parts Damaged . | . . . . . Bothacking | -11 -10 -10 -10 -9 ------------ Run | Yrd Mat Min Exi Min Used RIF Installer . | . . . . . Robots Hacked . | . . . . . Non-combat . | . . . . . Combat . | . . . . . Robot Hacks Applied . | . . . . . Relay Couplers Released . | . . . . . Fabnet Peak Effective % . | . . . . . Robots Rewired . | . . . . . Allies Hacked . | . . . . . Hacks Repelled . | . . . . . Allies | -11 -10 -10 -10 -9 -------- Run | Yrd Mat Min Exi Min Total Allies . | . . . . . Largest Group . | . . . . . Highest-Rated Group . | . . . . . Highest-Rated Ally . | . . . . . Total Orders . | . . . . . Ally Attacks . | . . . . . Total Damage . | . . . . . Kills . | . . . . . Allies Corrupted . | . . . . . Allies Melted . | . . . . . Intel | -11 -10 -10 -10 -9 ------- Run | Yrd Mat Min Exi Min Active Infowar (turns) 154 | . 30 47 77 . Sensors 154 | . 30 47 77 . Robot Analysis Total 1 | . 1 . . . Derelict Logs Recovered 1 | . . . . 1 Drone Launches . | . . . . . Drone Recoveries . | . . . . . Exploration | -11 -10 -10 -10 -9 ------------- Run | Yrd Mat Min Exi Min Turns Passed 2468 | 83 624 47 1330 384 Spaces Moved 1343 | 59 404 48 733 99 Core 6 | 6 . . . . Treads . | . . . . . Legs 275 | 53 222 . . . Wheels 1062 | . 182 48 733 99 Hover . | . . . . . Flight . | . . . . . Fastest Speed 50 | 50 100 100 100 190 Average Speed 154 | 112 110 100 180 190 Slowest Speed 190 | 120 120 100 190 190 Overloaded Moves . | . . . . . Propulsion Burnouts . | . . . . . Robots Hopped . | . . . . . Potential Cave-ins . | . . . . . Cave-ins Triggered . | . . . . . Exploration Rate (%) 36 | 4 62 12 92 14 Regions Visited 4 Branch Regions 3 Pre-discovered Areas 1 | . . . 1 . Known Exits Taken . | . . . . . Unknown Exits Taken 4 | 1 1 1 1 . Scrap Searched . | . . . . . Spaces Dug . | . . . . . Terrain Destroyed . | . . . . . Melee . | . . . . . Projectile . | . . . . . AOE . | . . . . . Terrain Rammed . | . . . . . Walls Destroyed . | . . . . . Machines Disabled . | . . . . . Actions | -11 -10 -10 -10 -9 --------- Run | Yrd Mat Min Exi Min Total 1651 | 72 507 47 742 283 Wait 190 | . 23 . . 167 Move 1339 | 58 403 47 732 99 Hop . | . . . . . Pick Up 13 | 6 3 . 4 . Fast Attach 16 | 6 8 . 1 1 Attach 3 | . 3 . . . Detach 6 | . 4 . 2 . Swap 9 | 1 6 . . 2 Drop 15 | 1 10 . 3 1 Fire 49 | . 45 . . 4 Melee . | . . . . . Ram 2 | . 2 . . . Kick . | . . . . . Crush 9 | . . . . 9 Escape Stasis . | . . . . . Rewire . | . . . . . Trap . | . . . . . Miscellaneous . | . . . . . Route ------- -11/Scrapyard -10/Materials (discovered 3 exits: [*Mat x2] / [*Min]) -10/Mines -10/Exiles -9/Mines History --------- Turn | Location | Event 4 | -11/Scrapyard | Discovered new exit (range 15) 84 | -11/Scrapyard | Entered Materials 267 | -10/Materials | Core integrity fell below 50% 350 | -10/Materials | Discovered new exit (range 9) 582 | -10/Materials | Discovered new exit (range 5) 636 | -10/Materials | Discovered new exit (range 8) 708 | -10/Materials | Entered Mines 723 | -10/Mines | Assembled infested the area 751 | -10/Mines | Deemed a non-threat by the Exiles lab entrance 751 | -10/Mines | Discovered new exit (range 5) 755 | -10/Mines | Entered Exiles 779 | -10/Exiles | Met 8R-AWN 797 | -10/Exiles | Met EX-HEX 805 | -10/Exiles | Build established: Mutant 904 | -10/Exiles | Met EX-DEC 987 | -10/Exiles | Visited The Gauntlet 1142 | -10/Exiles | Build established: Hauler-Mutant 1258 | -10/Exiles | Learned location of Zion (-6) 1387 | -10/Exiles | Discovered new exit (range 10) 1510 | -10/Exiles | Met EX-BIN 1770 | -10/Exiles | Aligned with FarCom system 1772 | -10/Exiles | Given EX-Vault access code 1820 | -10/Exiles | Opened EX-Vault 1835 | -10/Exiles | Found Trap Reconfigurator 1876 | -10/Exiles | Warned to stay clear of 0b10 Research branches 2085 | -10/Exiles | Left Exiles lab with Trap Reconfigurator 2085 | -10/Exiles | Entered Mines 2151 | -9/Mines | Learned Materials security intel 2447 | -9/Mines | Core integrity fell below 20% 2469 | -9/Mines | Destroyed by G-34 Mercenary with Small Laser Last Messages --------------- network. EX-BIN: And don't even think about spreading that code around. We're gonna change it right after you leave. Most certainly not to something like 1234 which I did last time as a little joke and some thief managed to sneak in here and steal a few of HEX's prototypes. 01942_ Connecting with EX-Message Board... LOCATION=UNKNOWN GOAL=ESCAPE 02085_ Receiving FarCom transmissions... 02151_ Acquired derelict log, extracted data. Data stored: Materials security intel. 02444_ Lgt. Treads severed. 02446_ Acquired Lgt. Treads. 02449_ Lgt. Assault Rifle severed. 02455_ Dropped Humpback. 02455_ Slammed into L-31 Rogue. 02464_ Lgt. Treads severed. 02465_ Slammed into L-31 Rogue. 02467_ Lgt. Ion Engine destroyed. 02468_ Slammed into L-31 Rogue. Map ----- +----------------------------------------------------+ | ????????????????????????????????????????????? | | ????????????????????????????????????????????? | | ????????????????????????????????????????????? | | ????????????????????????????????????????????? | | ????????????????????????????????????????????? | | ????????????????????????????????????????????? | | ????????????????????????????????????????????? | | ????????????????????????????????????????????? | | ????????????????????????????????????????????? | | ????????????????????????????????????????????? | | ????????????????????????????????????????????? | | ????????????????????????????????????????????? | | ????????????????????????????????????????????? | | ????????????????????????????????????????????? | | ???????????????s????????????????????????????? | | ???????????????s????????????????????????????? | | ????????????????????????????????????????????? | | ???????????????s????????????????????????????? | | ????????????????????????????????????????????? | | ????????????????????????????????????????????? | | ????????????????????????????????????????????? | | ????????????????????????????????????????????? | | ????????????????????????????????????????????? | | ???????????????????????????##???????????????? | | ??????????????????######## ##??????????????? | | ??????????????????#!@% g #??????????????? | | ??????????????????#l### # #?????????????? | | ??????????????????#!#?# #?? #????????????? | | ??????????????????# #?# #???? ?????????? | | ??????????????????# #?# #?????? #??????? | | ????????????# ##### ### ???????? #???????? | | ????????????# ####??????????##???????? | | ????????????######## #???????g??????????????? | | ???????????????????# ########?g?????????????? | | ???????????????????# #???????????????? | | ???????????????????# ###### #???????????????? | | ???????????????????# #??????????????????????? | | ????????############ ##?????????????????????? | | ????????# ##????????????????????? | | ????????# ##???????????????????? | | ????????# ######## ##??????????????????? | | ???####?# #??????## ##?????????????????? | | ??## ### #???????### ##????????????????? | | ??# ## #?????????## #????????????????? | | ??# ## #?????????## #????????????????? | | ??# ###???????# ##????????????????? | | ??# """ #???????# #?????????????????? | | ??## """ #??????## ##?????????????????? | | ???# """ #???????####??????????????????? | | ???## ##?????????????????????????????? | +----------------------------------------------------+ Best States ------------- Heat Dissipation 39 Energy Generation 10 Energy Capacity 250 Matter Stores 300 Matter Capacity 300 Sight Range 16 Robot Scan Range 14 Terrain Scan Density 10 Evasion (%) 55 Recoil Reduction 2 Item Schematics ----------------- None Robot Schematics ------------------ None Fabricated ------------ Nothing Repaired ---------- Nothing Studied --------- None Alien Tech Used ----------------- None Achievements -------------- Sixth Sense Challenges ------------ None Game ------ Seed MetamassDisruptionSuit Manual? 0 Play Time 00:43:51 Cumulative 32.9 hours Start 2026.02.20 @ 16:31:47 End 2026.02.20 @ 19:35:00 Sessions 3 Manual Loads 0 Difficulty Rogue Special Mode None Game No. 24 Rogue 24 Adventurer 0 Explorer 0 Win Type - Total 0 Types 0/0/0/0/0/0/0/0/0/0 Lore% 24 Gallery% 21 Achievement% 30 Wizard Run 0 Options --------- Layout 0 ASCII 0 Keyboard 1 Movement Vi Keybinds 0 Fullscreen 1 Font 18/SmallcapsGlow Map View 76x50 Zoom Use 0% Tactical HUD 1 Map Filters NONE Filters NONE Steam 1 RUN: c2dd1034-957a-4008-a94b-302b6b49f057